Workbook

Sheet Notes
A93: For pre-16 related enquiries:
B94: HighNeeds.SOUTHERN@education.gsi.gov.uk
B95: HighNeeds.CENTRAL@education.gsi.gov.uk
B96: HighNeeds.NORTHERN@education.gsi.gov.uk
A98: For Post 16 related enquiries:
B99: YPSouthern.EFA@education.gsi.gov.uk
B100: YPCentralSW.EFA@education.gsi.gov.uk
B101: YPNorthern.EFA@education.gsi.gov.uk
K103: © Crown copyright 2014

Sheet High Needs Places
A1: High Needs: place allocations for the 2014/15 Academic Year
G2: Overall Total | I2: =SUM(Table22[Pre-16 SEN Units - 2014/15]) -> 9700.2 | J2: =SUM(Table22[Pre-16 Resourced Provision - 2014/15]) -> 13216 | K2: =SUM(Table22[Pre-16 Alternative Provision - 2014/15]) -> 24252.8 | L2: =SUM(Table22[Pre-16 SEN Places - 2014/15]) -> 90931.6 | M2: =SUM(Table22[Total pre-16 - 2014/15]) -> 138100.6 | N2: =SUM(Table22[Post-16 - Schools - 16-18 - 2014/15]) -> 17357 | O2: =SUM(Table22[Post-16 - Post School - 16-18 - 2014/15]) -> 12642 | P2: =SUM(Table22[Post-16 - Post School - 19-25 - 2014/15]) -> 9623 | Q2: =SUM(Table22[Total post-16 - 2014/15]) -> 39622 | R2: =SUM(Table22[Total high needs places - 2014/15]) -> 177722.6
G3: Sub-Total | I3: =SUBTOTAL(109,Table22[Pre-16 SEN Units - 2014/15]) -> 9700.2 | J3: =SUBTOTAL(109,Table22[Pre-16 Resourced Provision - 2014/15]) -> 13216 | K3: =SUBTOTAL(109,Table22[Pre-16 Alternative Provision - 2014/15]) -> 24252.8 | L3: =SUBTOTAL(109,Table22[Pre-16 SEN Places - 2014/15]) -> 90931.6 | M3: =SUBTOTAL(109,Table22[Total pre-16 - 2014/15]) -> 138100.6 | N3: =SUBTOTAL(109,Table22[Post-16 - Schools - 16-18 - 2014/15]) -> 17357 | O3: =SUBTOTAL(109,Table22[Post-16 - Post School - 16-18 - 2014/15]) -> 12642 | P3: =SUBTOTAL(109,Table22[Post-16 - Post School - 19-25 - 2014/15]) -> 9623 | Q3: =SUBTOTAL(109,Table22[Total post-16 - 2014/15]) -> 39622 | R3: =SUBTOTAL(109,Table22[Total high needs places - 2014/15]) -> 177722.6
A4: Establishment name | B4: LAEstab | C4: UPIN | D4: Category | E4: Territory | F4: Region | G4: Local Authority | H4: LA No. | I4: Pre-16 SEN Units - 2014/15 | J4: Pre-16 Resourced Provision - 2014/15 | K4: Pre-16 Alternative Provision - 2014/15 | L4: Pre-16 SEN Places - 2014/15 | M4: Total pre-16 - 2014/15 | N4: Post-16 - Schools - 16-18 - 2014/15 | O4: Post-16 - Post School - 16-18 - 2014/15 | P4: Post-16 - Post School - 19-25 - 2014/15 | Q4: Total post-16 - 2014/15 | R4: Total high needs places - 2014/15
A5: A.C.E - ALTERNATIVE COMPLEMENTARY EDUCATION | B5: 8791106 | C5: 0 | D5: MAINTAINED ALTERNATIVE PROVISION (AP) - PRU | E5: CentralSW | F5: South West | G5: Plymouth | H5: 879 | I5: 0 | J5: 0 | K5: 255 | L5: 0 | M5: 255 | N5: 0 | O5: 0 | P5: 0 | Q5: 0 | R5: 255
A6: ABBEY COURT COMMUNITY SPECIAL SCHOOL | B6: 8877053 | C6: 124000 | D6: MAINTAINED SPECIAL SCHOOL | E6: South | F6: South East | G6: Medway | H6: 887 | I6: 0 | J6: 0 | K6: 0 | L6: 123 | M6: 123 | N6: 22 | O6: 0 | P6: 0 | Q6: 22 | R6: 145
A7: ABBEY HILL SCHOOL AND PERFORMING ARTS COLLEGE | B7: 8617007 | C7: 123500 | D7: MAINTAINED SPECIAL SCHOOL | E7: CentralSW | F7: West Midlands | G7: Staffordshire | H7: 860 | I7: 0 | J7: 0 | K7: 0 | L7: 0 | M7: 0 | N7: 1 | O7: 0 | P7: 0 | Q7: 1 | R7: 1
A8: ABBEY HILL SCHOOL AND PERFORMING ARTS COLLEGE | B8: 8617007 | C8: 123500 | D8: MAINTAINED SPECIAL SCHOOL | E8: CentralSW | F8: West Midlands | G8: Stoke-on-Trent | H8: 861 | I8: 0 | J8: 0 | K8: 0 | L8: 194 | M8: 194 | N8: 24 | O8: 0 | P8: 0 | Q8: 24 | R8: 218
A9: ABBEY HILL SCHOOL AND TECHNOLOGY COLLEGE | B9: 8087029 | C9: 124569 | D9: ACADEMY - SPECIAL | E9: North | F9: North East | G9: Darlington | H9: 841 | I9: 0 | J9: 0 | K9: 0 | L9: 0 | M9: 0 | N9: 1 | O9: 0 | P9: 0 | Q9: 1 | R9: 1
A10: ABBEY HILL SCHOOL AND TECHNOLOGY COLLEGE | B10: 8087029 | C10: 124569 | D10: ACADEMY - SPECIAL | E10: North | F10: North East | G10: Hartlepool | H10: 805 | I10: 0 | J10: 0 | K10: 0 | L10: 0 | M10: 0 | N10: 2 | O10: 0 | P10: 0 | Q10: 2 | R10: 2
A11: ABBEY HILL SCHOOL AND TECHNOLOGY COLLEGE | B11: 8087029 | C11: 124569 | D11: ACADEMY - SPECIAL | E11: North | F11: North East | G11: Redcar and Cleveland | H11: 807 | I11: 0 | J11: 0 | K11: 0 | L11: 0 | M11: 0 | N11: 1 | O11: 0 | P11: 0 | Q11: 1 | R11: 1
A12: ABBEY HILL SCHOOL AND TECHNOLOGY COLLEGE | B12: 8087029 | C12: 124569 | D12: ACADEMY - SPECIAL | E12: North | F12: North East | G12: Stockton-on-Tees | H12: 808 | I12: 0 | J12: 0 | K12: 0 | L12: 215 | M12: 215 | N12: 90 | O12: 0 | P12: 0 | Q12: 90 | R12: 305
A13: ABBEY HILL SCHOOL AND TECHNOLOGY COLLEGE | B13: 8087029 | C13: 124569 | D13: ACADEMY - SPECIAL | E13: North | F13: North West | G13: Lancashire | H13: 888 | I13: 0 | J13: 0 | K13: 0 | L13: 0 | M13: 0 | N13: 1 | O13: 0 | P13: 0 | Q13: 1 | R13: 1
A14: ABBEY HILL SCHOOL AND TECHNOLOGY COLLEGE | B14: 8087029 | C14: 124569 | D14: ACADEMY - SPECIAL | E14: North | F14: Yorkshire and the Humber | G14: Kirklees | H14: 382 | I14: 0 | J14: 0 | K14: 0 | L14: 0 | M14: 0 | N14: 1 | O14: 0 | P14: 0 | Q14: 1 | R14: 1
A15: ABBEY MANOR COLLEGE | B15: 2091103 | C15: 0 | D15: MAINTAINED ALTERNATIVE PROVISION (AP) - PRU | E15: South | F15: London | G15: Lewisham | H15: 209 | I15: 0 | J15: 0 | K15: 206 | L15: 0 | M15: 206 | N15: 0 | O15: 0 | P15: 0 | Q15: 0 | R15: 206
A16: ABBEY PARK MIDDLE SCHOOL | B16: 8852906 | C16: 0 | D16: MAINTAINED SCHOOL - MAINSTREAM | E16: CentralSW | F16: West Midlands | G16: Worcestershire | H16: 885 | I16: 0 | J16: 10 | K16: 0 | L16: 0 | M16: 10 | N16: 0 | O16: 0 | P16: 0 | Q16: 0 | R16: 10
A17: ABBEY SCHOOL | B17: 3727001 | C17: 0 | D17: MAINTAINED SPECIAL SCHOOL | E17: North | F17: Yorkshire and the Humber | G17: Rotherham | H17: 372 | I17: 0 | J17: 0 | K17: 0 | L17: 105 | M17: 105 | N17: 0 | O17: 0 | P17: 0 | Q17: 0 | R17: 105
A18: ABBEY SCHOOL | B18: 3727001 | C18: 0 | D18: MAINTAINED SPECIAL SCHOOL | E18: North | F18: Yorkshire and the Humber | G18: Sheffield | H18: 373 | I18: 0 | J18: 0 | K18: 0 | L18: 5 | M18: 5 | N18: 0 | O18: 0 | P18: 0 | Q18: 0 | R18: 5
A19: ABBEYFIELD SCHOOL | B19: 8654000 | C19: 117685 | D19: MAINTAINED SCHOOL - MAINSTREAM | E19: CentralSW | F19: South West | G19: Wiltshire | H19: 865 | I19: 0 | J19: 11 | K19: 0 | L19: 0 | M19: 11 | N19: 1 | O19: 0 | P19: 0 | Q19: 1 | R19: 12
A20: ABBEYFIELD SCHOOL | B20: 9284007 | C20: 122250 | D20: ACADEMY - MAINSTREAM | E20: CentralSW | F20: East Midlands | G20: Northamptonshire | H20: 928 | I20: 0 | J20: 0 | K20: 0 | L20: 0 | M20: 0 | N20: 2 | O20: 0 | P20: 0 | Q20: 2 | R20: 2
A21: ABBEYWOOD COMMUNITY SCHOOL | B21: 8034000 | C21: 122309 | D21: ACADEMY - MAINSTREAM | E21: CentralSW | F21: South West | G21: Bristol, City of | H21: 801 | I21: 0 | J21: 0 | K21: 0 | L21: 0 | M21: 0 | N21: 1 | O21: 0 | P21: 0 | Q21: 1 | R21: 1
A22: ABBEYWOOD COMMUNITY SCHOOL | B22: 8034000 | C22: 122309 | D22: ACADEMY - MAINSTREAM | E22: CentralSW | F22: South West | G22: South Gloucestershire | H22: 803 | I22: 24 | J22: 0 | K22: 0 | L22: 0 | M22: 24 | N22: 1 | O22: 0 | P22: 0 | Q22: 1 | R22: 25
A23: ABBOT'S LEA SCHOOL | B23: 3417025 | C23: 123756 | D23: MAINTAINED SPECIAL SCHOOL | E23: North | F23: North West | G23: Liverpool | H23: 341 | I23: 0 | J23: 0 | K23: 0 | L23: 185 | M23: 185 | N23: 43 | O23: 0 | P23: 0 | Q23: 43 | R23: 228
A24: ABBOTSFIELD SCHOOL | B24: 3125409 | C24: 113769 | D24: MAINTAINED SCHOOL - MAINSTREAM | E24: South | F24: London | G24: Hillingdon | H24: 312 | I24: 0 | J24: 4 | K24: 0 | L24: 0 | M24: 4 | N24: 0 | O24: 0 | P24: 0 | Q24: 0 | R24: 4
A25: ABINGDON AND WITNEY COLLEGE | B25: 9318007 | C25: 112314 | D25: FURTHER EDUCATION PROVIDER | E25: South | F25: South East | G25: Buckinghamshire | H25: 825 | I25: 0 | J25: 0 | K25: 0 | L25: 0 | M25: 0 | N25: 0 | O25: 0 | P25: 2 | Q25: 2 | R25: 2
A26: ABINGDON AND WITNEY COLLEGE | B26: 9318007 | C26: 112314 | D26: FURTHER EDUCATION PROVIDER | E26: South | F26: South East | G26: Oxfordshire | H26: 931 | I26: 0 | J26: 0 | K26: 0 | L26: 0 | M26: 0 | N26: 0 | O26: 157 | P26: 53 | Q26: 210 | R26: 210
A27: ABINGTON ACADEMY | B27: 8555403 | C27: 121203 | D27: ACADEMY - MAINSTREAM | E27: CentralSW | F27: East Midlands | G27: Leicestershire | H27: 855 | I27: 0 | J27: 6 | K27: 0 | L27: 0 | M27: 6 | N27: 0 | O27: 0 | P27: 0 | Q27: 0 | R27: 6
A28: ABRAHAM MOSS COMMUNITY SCHOOL | B28: 3524271 | C28: 0 | D28: MAINTAINED SCHOOL - MAINSTREAM | E28: North | F28: North West | G28: Manchester | H28: 352 | I28: 0 | J28: 34 | K28: 0 | L28: 0 | M28: 34 | N28: 0 | O28: 0 | P28: 0 | Q28: 0 | R28: 34
A29: ACADEMY 360 | B29: 3946905 | C29: 119119 | D29: ACADEMY - MAINSTREAM | E29: North | F29: North East | G29: Sunderland | H29: 394 | I29: 0 | J29: 30 | K29: 0 | L29: 0 | M29: 30 | N29: 0 | O29: 0 | P29: 0 | Q29: 0 | R29: 30
A30: ACCRINGTON AND ROSSENDALE COLLEGE | B30: 8888000 | C30: 106762 | D30: FURTHER EDUCATION PROVIDER | E30: North | F30: North West | G30: Blackburn with Darwen | H30: 889 | I30: 0 | J30: 0 | K30: 0 | L30: 0 | M30: 0 | N30: 0 | O30: 1 | P30: 0 | Q30: 1 | R30: 1
A31: ACCRINGTON AND ROSSENDALE COLLEGE | B31: 8888000 | C31: 106762 | D31: FURTHER EDUCATION PROVIDER | E31: North | F31: North West | G31: Lancashire | H31: 888 | I31: 0 | J31: 0 | K31: 0 | L31: 0 | M31: 0 | N31: 0 | O31: 21 | P31: 3 | Q31: 24 | R31: 24
A32: ACCRINGTON ST CHRISTOPHER'S CHURCH OF ENGLAND HIGH SCHOOL | B32: 8884630 | C32: 120359 | D32: ACADEMY - MAINSTREAM | E32: North | F32: North West | G32: Lancashire | H32: 888 | I32: 0 | J32: 0 | K32: 0 | L32: 0 | M32: 0 | N32: 6 | O32: 0 | P32: 0 | Q32: 6 | R32: 6
A33: ACLAND BURGHLEY SCHOOL | B33: 2024285 | C33: 113861 | D33: MAINTAINED SCHOOL - MAINSTREAM | E33: South | F33: London | G33: Camden | H33: 202 | I33: 0 | J33: 16 | K33: 0 | L33: 0 | M33: 16 | N33: 6 | O33: 0 | P33: 0 | Q33: 6 | R33: 22
A34: ACLAND BURGHLEY SCHOOL | B34: 2024285 | C34: 113861 | D34: MAINTAINED SCHOOL - MAINSTREAM | E34: South | F34: London | G34: Islington | H34: 206 | I34: 0 | J34: 0 | K34: 0 | L34: 0 | M34: 0 | N34: 1 | O34: 0 | P34: 0 | Q34: 1 | R34: 1
A35: ACORNS PRIMARY SCHOOL | B35: 8887119 | C35: 0 | D35: MAINTAINED SPECIAL SCHOOL | E35: North | F35: North West | G35: Lancashire | H35: 888 | I35: 0 | J35: 0 | K35: 0 | L35: 68 | M35: 68 | N35: 0 | O35: 0 | P35: 0 | Q35: 0 | R35: 68
A36: ACRESFIELD COMMUNITY PRIMARY SCHOOL | B36: 8962678 | C36: 0 | D36: MAINTAINED SCHOOL - MAINSTREAM | E36: North | F36: North West | G36: Cheshire West and Chester | H36: 896 | I36: 0 | J36: 7 | K36: 0 | L36: 0 | M36: 7 | N36: 0 | O36: 0 | P36: 0 | Q36: 0 | R36: 7
A37: ACTION FOR CHILDREN, SPIRES SCHOOL - PARKLANDS CAMPUS | B37: 9317026 | C37: 123727 | D37: NON MAINTAINED SPECIAL SCHOOL | E37: CentralSW | F37: West Midlands | G37: Walsall | H37: 335 | I37: 0 | J37: 0 | K37: 0 | L37: 1 | M37: 1 | N37: 0 | O37: 0 | P37: 0 | Q37: 0 | R37: 1
A38: ACTION FOR CHILDREN, SPIRES SCHOOL - PARKLANDS CAMPUS | B38: 9317026 | C38: 123727 | D38: NON MAINTAINED SPECIAL SCHOOL | E38: South | F38: London | G38: Hillingdon | H38: 312 | I38: 0 | J38: 0 | K38: 0 | L38: 5 | M38: 5 | N38: 5 | O38: 0 | P38: 0 | Q38: 5 | R38: 10
A39: ACTION FOR CHILDREN, SPIRES SCHOOL - PARKLANDS CAMPUS | B39: 9317026 | C39: 123727 | D39: NON MAINTAINED SPECIAL SCHOOL | E39: South | F39: South East | G39: Buckinghamshire | H39: 825 | I39: 0 | J39: 0 | K39: 0 | L39: 2 | M39: 2 | N39: 2 | O39: 0 | P39: 0 | Q39: 2 | R39: 4
A40: ACTION FOR CHILDREN, SPIRES SCHOOL - PARKLANDS CAMPUS | B40: 9317026 | C40: 123727 | D40: NON MAINTAINED SPECIAL SCHOOL | E40: South | F40: South East | G40: Windsor and Maidenhead | H40: 868 | I40: 0 | J40: 0 | K40: 0 | L40: 0 | M40: 0 | N40: 1 | O40: 0 | P40: 0 | Q40: 1 | R40: 1
A41: ACTIVATE ARTS LTD | B41: 0 | C41: 124167 | D41: POST-16 CHARITABLE AND COMMERCIAL PROVIDER | E41: North | F41: North West | G41: Knowsley | H41: 340 | I41: 0 | J41: 0 | K41: 0 | L41: 0 | M41: 0 | N41: 0 | O41: 0 | P41: 36 | Q41: 36 | R41: 36
A42: ACTIVATE ARTS LTD | B42: 0 | C42: 124167 | D42: POST-16 CHARITABLE AND COMMERCIAL PROVIDER | E42: North | F42: North West | G42: Wirral | H42: 344 | I42: 0 | J42: 0 | K42: 0 | L42: 0 | M42: 0 | N42: 0 | O42: 10 | P42: 0 | Q42: 10 | R42: 10
A43: ACTIVATE LEARNING | B43: 9318004 | C43: 116105 | D43: FURTHER EDUCATION PROVIDER | E43: South | F43: South East | G43: Bracknell Forest | H43: 867 | I43: 0 | J43: 0 | K43: 0 | L43: 0 | M43: 0 | N43: 0 | O43: 2 | P43: 8 | Q43: 10 | R43: 10
A44: ACTIVATE LEARNING | B44: 9318004 | C44: 116105 | D44: FURTHER EDUCATION PROVIDER | E44: South | F44: South East | G44: Oxfordshire | H44: 931 | I44: 0 | J44: 0 | K44: 0 | L44: 0 | M44: 0 | N44: 0 | O44: 21 | P44: 3 | Q44: 24 | R44: 24
A45: ACTIVATE LEARNING | B45: 9318004 | C45: 116105 | D45: FURTHER EDUCATION PROVIDER | E45: South | F45: South East | G45: Reading | H45: 870 | I45: 0 | J45: 0 | K45: 0 | L45: 0 | M45: 0 | N45: 0 | O45: 29 | P45: 34 | Q45: 63 | R45: 63
A46: ACTIVATE LEARNING | B46: 9318004 | C46: 116105 | D46: FURTHER EDUCATION PROVIDER | E46: South | F46: South East | G46: Slough | H46: 871 | I46: 0 | J46: 0 | K46: 0 | L46: 0 | M46: 0 | N46: 0 | O46: 1 | P46: 0 | Q46: 1 | R46: 1
A47: ACTIVATE LEARNING | B47: 9318004 | C47: 116105 | D47: FURTHER EDUCATION PROVIDER | E47: South | F47: South East | G47: West Berkshire | H47: 869 | I47: 0 | J47: 0 | K47: 0 | L47: 0 | M47: 0 | N47: 0 | O47: 12 | P47: 9 | Q47: 21 | R47: 21
A48: ACTIVATE LEARNING | B48: 9318004 | C48: 116105 | D48: FURTHER EDUCATION PROVIDER | E48: South | F48: South East | G48: Windsor and Maidenhead | H48: 868 | I48: 0 | J48: 0 | K48: 0 | L48: 0 | M48: 0 | N48: 0 | O48: 2 | P48: 2 | Q48: 4 | R48: 4
A49: ACTIVATE LEARNING | B49: 9318004 | C49: 116105 | D49: FURTHER EDUCATION PROVIDER | E49: South | F49: South East | G49: Wokingham | H49: 872 | I49: 0 | J49: 0 | K49: 0 | L49: 0 | M49: 0 | N49: 0 | O49: 10 | P49: 10 | Q49: 20 | R49: 20
A50: ACTON HIGH SCHOOL | B50: 3074035 | C50: 122226 | D50: MAINTAINED SCHOOL - MAINSTREAM | E50: South | F50: London | G50: Ealing | H50: 307 | I50: 0 | J50: 0 | K50: 0 | L50: 0 | M50: 0 | N50: 1 | O50: 0 | P50: 0 | Q50: 1 | R50: 1
A51: ADDEY AND STANHOPE SCHOOL | B51: 2094600 | C51: 0 | D51: MAINTAINED SCHOOL - MAINSTREAM | E51: South | F51: London | G51: Lewisham | H51: 209 | I51: 0 | J51: 25 | K51: 0 | L51: 0 | M51: 25 | N51: 0 | O51: 0 | P51: 0 | Q51: 0 | R51: 25
A52: ADDINGTON HIGH SCHOOL | B52: 3064000 | C52: 122641 | D52: ACADEMY - MAINSTREAM | E52: South | F52: London | G52: Croydon | H52: 306 | I52: 30 | J52: 0 | K52: 0 | L52: 0 | M52: 30 | N52: 5 | O52: 0 | P52: 0 | Q52: 5 | R52: 35
A53: ADDINGTON SCHOOL | B53: 8727029 | C53: 123987 | D53: MAINTAINED SPECIAL SCHOOL | E53: South | F53: South East | G53: Bracknell Forest | H53: 867 | I53: 0 | J53: 0 | K53: 0 | L53: 0 | M53: 0 | N53: 2 | O53: 0 | P53: 0 | Q53: 2 | R53: 2
A54: ADDINGTON SCHOOL | B54: 8727029 | C54: 123987 | D54: MAINTAINED SPECIAL SCHOOL | E54: South | F54: South East | G54: Oxfordshire | H54: 931 | I54: 0 | J54: 0 | K54: 0 | L54: 0 | M54: 0 | N54: 1 | O54: 0 | P54: 0 | Q54: 1 | R54: 1
A55: ADDINGTON SCHOOL | B55: 8727029 | C55: 123987 | D55: MAINTAINED SPECIAL SCHOOL | E55: South | F55: South East | G55: Reading | H55: 870 | I55: 0 | J55: 0 | K55: 0 | L55: 0 | M55: 0 | N55: 6 | O55: 0 | P55: 0 | Q55: 6 | R55: 6
A56: ADDINGTON SCHOOL | B56: 8727029 | C56: 123987 | D56: MAINTAINED SPECIAL SCHOOL | E56: South | F56: South East | G56: Wokingham | H56: 872 | I56: 0 | J56: 0 | K56: 0 | L56: 155 | M56: 155 | N56: 34 | O56: 0 | P56: 0 | Q56: 34 | R56: 189
A57: ADELAIDE SCHOOL | B57: 8957209 | C57: 129409 | D57: ACADEMY - SPECIAL | E57: North | F57: North West | G57: Cheshire East | H57: 895 | I57: 0 | J57: 0 | K57: 0 | L57: 36 | M57: 36 | N57: 2 | O57: 0 | P57: 0 | Q57: 2 | R57: 38
A58: ADULT EDUCATION COLLEGE FOR BEXLEY | B58: 0 | C58: 108155 | D58: FURTHER EDUCATION PROVIDER | E58: South | F58: London | G58: Bexley | H58: 303 | I58: 0 | J58: 0 | K58: 0 | L58: 0 | M58: 0 | N58: 0 | O58: 5 | P58: 0 | Q58: 5 | R58: 5
A59: AEGIR COMMUNITY SCHOOL | B59: 9257034 | C59: 123634 | D59: MAINTAINED SPECIAL SCHOOL | E59: CentralSW | F59: East Midlands | G59: Lincolnshire | H59: 925 | I59: 0 | J59: 0 | K59: 0 | L59: 96 | M59: 96 | N59: 31 | O59: 0 | P59: 0 | Q59: 31 | R59: 127
A60: AEGIR COMMUNITY SCHOOL | B60: 9257034 | C60: 123634 | D60: MAINTAINED SPECIAL SCHOOL | E60: North | F60: Yorkshire and the Humber | G60: North Lincolnshire | H60: 813 | I60: 0 | J60: 0 | K60: 0 | L60: 0 | M60: 0 | N60: 1 | O60: 0 | P60: 0 | Q60: 1 | R60: 1
A61: AERODROME PRIMARY ACADEMY | B61: 3063417 | C61: 123037 | D61: ACADEMY - MAINSTREAM | E61: South | F61: London | G61: Croydon | H61: 306 | I61: 14 | J61: 0 | K61: 0 | L61: 0 | M61: 14 | N61: 0 | O61: 0 | P61: 0 | Q61: 0 | R61: 14
A62: AIGBURTH HIGH SCHOOL | B62: 3417069 | C62: 123830 | D62: MAINTAINED SPECIAL SCHOOL | E62: North | F62: North West | G62: Liverpool | H62: 341 | I62: 0 | J62: 0 | K62: 0 | L62: 100 | M62: 100 | N62: 20 | O62: 0 | P62: 0 | Q62: 20 | R62: 120
A63: ALBANY CENTRE | B63: 9351103 | C63: 0 | D63: MAINTAINED ALTERNATIVE PROVISION (AP) - PRU | E63: South | F63: East of England | G63: Suffolk | H63: 935 | I63: 0 | J63: 0 | K63: 27 | L63: 0 | M63: 27 | N63: 0 | O63: 0 | P63: 0 | Q63: 0 | R63: 27
A64: ALBERT PRITCHARD INFANT SCHOOL | B64: 3332042 | C64: 0 | D64: MAINTAINED SCHOOL - MAINSTREAM | E64: CentralSW | F64: West Midlands | G64: Sandwell | H64: 333 | I64: 0 | J64: 6 | K64: 0 | L64: 0 | M64: 6 | N64: 0 | O64: 0 | P64: 0 | Q64: 0 | R64: 6
A65: ALDER BROOK PRIMARY PARTNERSHIP CENTRE | B65: 3551103 | C65: 0 | D65: MAINTAINED ALTERNATIVE PROVISION (AP) - PRU | E65: North | F65: North West | G65: Salford | H65: 355 | I65: 0 | J65: 0 | K65: 40 | L65: 0 | M65: 40 | N65: 0 | O65: 0 | P65: 0 | Q65: 0 | R65: 40
A66: ALDERBROOK LEADING EDGE SCHOOL AND ARTS COLLEGE | B66: 3344015 | C66: 119994 | D66: ACADEMY - MAINSTREAM | E66: CentralSW | F66: West Midlands | G66: Solihull | H66: 334 | I66: 40 | J66: 0 | K66: 0 | L66: 0 | M66: 40 | N66: 0 | O66: 0 | P66: 0 | Q66: 0 | R66: 40
A67: ALDERCAR COMMUNITY LANGUAGE COLLEGE | B67: 8304089 | C67: 118227 | D67: MAINTAINED SCHOOL - MAINSTREAM | E67: CentralSW | F67: East Midlands | G67: Derbyshire | H67: 830 | I67: 0 | J67: 7 | K67: 0 | L67: 0 | M67: 7 | N67: 11 | O67: 0 | P67: 0 | Q67: 11 | R67: 18
A68: ALDERCAR INFANT SCHOOL | B68: 8302116 | C68: 0 | D68: MAINTAINED SCHOOL - MAINSTREAM | E68: CentralSW | F68: East Midlands | G68: Derbyshire | H68: 830 | I68: 0 | J68: 8 | K68: 0 | L68: 0 | M68: 8 | N68: 0 | O68: 0 | P68: 0 | Q68: 0 | R68: 8
A69: ALDERMAN KNIGHT SCHOOL | B69: 9167019 | C69: 0 | D69: MAINTAINED SPECIAL SCHOOL | E69: CentralSW | F69: South West | G69: Gloucestershire | H69: 916 | I69: 0 | J69: 0 | K69: 0 | L69: 114 | M69: 114 | N69: 0 | O69: 0 | P69: 0 | Q69: 0 | R69: 114
A70: ALDERMAN'S GREEN COMMUNITY PRIMARY SCHOOL | B70: 3312000 | C70: 0 | D70: MAINTAINED SCHOOL - MAINSTREAM | E70: CentralSW | F70: West Midlands | G70: Coventry | H70: 331 | I70: 0 | J70: 12 | K70: 0 | L70: 0 | M70: 12 | N70: 0 | O70: 0 | P70: 0 | Q70: 0 | R70: 12
A71: ALDERMOOR FARM PRIMARY SCHOOL | B71: 3312131 | C71: 0 | D71: MAINTAINED SCHOOL - MAINSTREAM | E71: CentralSW | F71: West Midlands | G71: Coventry | H71: 331 | I71: 0 | J71: 8 | K71: 0 | L71: 0 | M71: 8 | N71: 0 | O71: 0 | P71: 0 | Q71: 0 | R71: 8
A72: ALDERSLEY HIGH SCHOOL | B72: 3365402 | C72: 122992 | D72: ACADEMY - MAINSTREAM | E72: CentralSW | F72: West Midlands | G72: Wolverhampton | H72: 336 | I72: 0 | J72: 15 | K72: 0 | L72: 0 | M72: 15 | N72: 2 | O72: 0 | P72: 0 | Q72: 2 | R72: 17
A73: ALDERWOOD | B73: 9351111 | C73: 0 | D73: MAINTAINED ALTERNATIVE PROVISION (AP) - PRU | E73: South | F73: East of England | G73: Suffolk | H73: 935 | I73: 0 | J73: 0 | K73: 20 | L73: 0 | M73: 20 | N73: 0 | O73: 0 | P73: 0 | Q73: 0 | R73: 20
A74: ALDERWOOD PRIMARY SCHOOL | B74: 2032024 | C74: 0 | D74: MAINTAINED SCHOOL - MAINSTREAM | E74: South | F74: London | G74: Greenwich | H74: 203 | I74: 0 | J74: 6 | K74: 0 | L74: 0 | M74: 6 | N74: 0 | O74: 0 | P74: 0 | Q74: 0 | R74: 6
A75: ALEXANDRA INFANT SCHOOL | B75: 3052001 | C75: 125230 | D75: ACADEMY - MAINSTREAM | E75: South | F75: London | G75: Bromley | H75: 305 | I75: 18 | J75: 0 | K75: 0 | L75: 0 | M75: 18 | N75: 0 | O75: 0 | P75: 0 | Q75: 0 | R75: 18
A76: ALEXANDRA NURSERY SCHOOL | B76: 3501002 | C76: 0 | D76: MAINTAINED SCHOOL - MAINSTREAM | E76: North | F76: North West | G76: Bolton | H76: 350 | I76: 0 | J76: 4 | K76: 0 | L76: 0 | M76: 4 | N76: 0 | O76: 0 | P76: 0 | Q76: 0 | R76: 4
A77: ALEXANDRA PARK SCHOOL | B77: 3094036 | C77: 120567 | D77: ACADEMY - MAINSTREAM | E77: South | F77: London | G77: Barnet | H77: 302 | I77: 0 | J77: 0 | K77: 0 | L77: 0 | M77: 0 | N77: 1 | O77: 0 | P77: 0 | Q77: 1 | R77: 1
A78: ALEXANDRA SCHOOL | B78: 3107004 | C78: 124171 | D78: ACADEMY - SPECIAL | E78: South | F78: London | G78: Harrow | H78: 310 | I78: 0 | J78: 0 | K78: 0 | L78: 80 | M78: 80 | N78: 0 | O78: 0 | P78: 0 | Q78: 0 | R78: 80
A79: ALFRETON GRANGE ARTS COLLEGE | B79: 8304001 | C79: 113137 | D79: MAINTAINED SCHOOL - MAINSTREAM | E79: CentralSW | F79: East Midlands | G79: Derbyshire | H79: 830 | I79: 0 | J79: 0 | K79: 0 | L79: 0 | M79: 0 | N79: 1 | O79: 0 | P79: 0 | Q79: 1 | R79: 1
A80: ALFRETON PARK COMMUNITY SPECIAL SCHOOL | B80: 8307018 | C80: 123740 | D80: MAINTAINED SPECIAL SCHOOL | E80: CentralSW | F80: East Midlands | G80: Derbyshire | H80: 830 | I80: 0 | J80: 0 | K80: 0 | L80: 61 | M80: 61 | N80: 17 | O80: 0 | P80: 0 | Q80: 17 | R80: 78
A81: ALFRISTON SCHOOL | B81: 8257003 | C81: 120753 | D81: ACADEMY - SPECIAL | E81: South | F81: London | G81: Barnet | H81: 302 | I81: 0 | J81: 0 | K81: 0 | L81: 0 | M81: 0 | N81: 1 | O81: 0 | P81: 0 | Q81: 1 | R81: 1
A82: ALFRISTON SCHOOL | B82: 8257003 | C82: 120753 | D82: ACADEMY - SPECIAL | E82: South | F82: London | G82: Ealing | H82: 307 | I82: 0 | J82: 0 | K82: 0 | L82: 0 | M82: 0 | N82: 1 | O82: 0 | P82: 0 | Q82: 1 | R82: 1
A83: ALFRISTON SCHOOL | B83: 8257003 | C83: 120753 | D83: ACADEMY - SPECIAL | E83: South | F83: South East | G83: Buckinghamshire | H83: 825 | I83: 0 | J83: 0 | K83: 0 | L83: 110 | M83: 110 | N83: 18 | O83: 0 | P83: 0 | Q83: 18 | R83: 128
A84: ALFRISTON SCHOOL | B84: 8257003 | C84: 120753 | D84: ACADEMY - SPECIAL | E84: South | F84: South East | G84: Oxfordshire | H84: 931 | I84: 0 | J84: 0 | K84: 0 | L84: 0 | M84: 0 | N84: 1 | O84: 0 | P84: 0 | Q84: 1 | R84: 1
A85: ALFRISTON SCHOOL | B85: 8257003 | C85: 120753 | D85: ACADEMY - SPECIAL | E85: South | F85: South East | G85: Windsor and Maidenhead | H85: 868 | I85: 0 | J85: 0 | K85: 0 | L85: 4 | M85: 4 | N85: 3 | O85: 0 | P85: 0 | Q85: 3 | R85: 7
A86: ALICE STEVENS SCHOOL | B86: 3317004 | C86: 123556 | D86: MAINTAINED SPECIAL SCHOOL | E86: CentralSW | F86: West Midlands | G86: Coventry | H86: 331 | I86: 0 | J86: 0 | K86: 0 | L86: 140 | M86: 140 | N86: 20 | O86: 0 | P86: 0 | Q86: 20 | R86: 160
A87: ALL FAITHS' CHILDREN'S COMMUNITY SCHOOL | B87: 8872600 | C87: 121000 | D87: ACADEMY - MAINSTREAM | E87: South | F87: South East | G87: Medway | H87: 887 | I87: 0 | J87: 34 | K87: 0 | L87: 0 | M87: 34 | N87: 0 | O87: 0 | P87: 0 | Q87: 0 | R87: 34
A88: ALL HALLOWS CATHOLIC COLLEGE | B88: 8954801 | C88: 123111 | D88: ACADEMY - MAINSTREAM | E88: North | F88: North West | G88: Cheshire East | H88: 895 | I88: 0 | J88: 0 | K88: 0 | L88: 0 | M88: 0 | N88: 2 | O88: 0 | P88: 0 | Q88: 2 | R88: 2
A89: ALL HALLOWS CATHOLIC SCHOOL | B89: 9365415 | C89: 113315 | D89: MAINTAINED SCHOOL - MAINSTREAM | E89: South | F89: South East | G89: Surrey | H89: 936 | I89: 0 | J89: 0 | K89: 0 | L89: 0 | M89: 0 | N89: 1 | O89: 0 | P89: 0 | Q89: 1 | R89: 1
A90: ALL HALLOWS RC BUSINESS AND ENTERPRISE COLLEGE | B90: 3554620 | C90: 0 | D90: MAINTAINED SCHOOL - MAINSTREAM | E90: North | F90: North West | G90: Salford | H90: 355 | I90: 0 | J90: 0 | K90: 0 | L90: 2 | M90: 2 | N90: 0 | O90: 0 | P90: 0 | Q90: 0 | R90: 2
A91: ALL SAINTS CATHOLIC COLLEGE | B91: 3574604 | C91: 124644 | D91: ACADEMY - MAINSTREAM | E91: North | F91: North West | G91: Lancashire | H91: 888 | I91: 0 | J91: 0 | K91: 0 | L91: 0 | M91: 0 | N91: 1 | O91: 0 | P91: 0 | Q91: 1 | R91: 1
A92: ALL SAINTS CATHOLIC COLLEGE | B92: 3574604 | C92: 124644 | D92: ACADEMY - MAINSTREAM | E92: North | F92: North West | G92: Tameside | H92: 357 | I92: 0 | J92: 0 | K92: 0 | L92: 0 | M92: 0 | N92: 1 | O92: 0 | P92: 0 | Q92: 1 | R92: 1
A93: ALL SAINTS' CATHOLIC HIGH SCHOOL | B93: 3735401 | C93: 121197 | D93: ACADEMY - MAINSTREAM | E93: North | F93: Yorkshire and the Humber | G93: Sheffield | H93: 373 | I93: 0 | J93: 6 | K93: 0 | L93: 0 | M93: 6 | N93: 0 | O93: 0 | P93: 0 | Q93: 0 | R93: 6
A94: ALL SAINTS CATHOLIC SCHOOL AND TECHNOLOGY COLLEGE | B94: 3014703 | C94: 114136 | D94: MAINTAINED SCHOOL - MAINSTREAM | E94: South | F94: London | G94: Barking and Dagenham | H94: 301 | I94: 0 | J94: 0 | K94: 0 | L94: 0 | M94: 0 | N94: 2 | O94: 0 | P94: 0 | Q94: 2 | R94: 2
A95: ALL SAINTS' CATHOLIC VOLUNTARY AIDED PRIMARY SCHOOL | B95: 3412006 | C95: 0 | D95: MAINTAINED SCHOOL - MAINSTREAM | E95: North | F95: North West | G95: Liverpool | H95: 341 | I95: 0 | J95: 20 | K95: 0 | L95: 0 | M95: 20 | N95: 0 | O95: 0 | P95: 0 | Q95: 0 | R95: 20
A96: ALL SAINTS' CHURCH OF ENGLAND SCHOOL, WEYMOUTH | B96: 8354801 | C96: 0 | D96: MAINTAINED SCHOOL - MAINSTREAM | E96: CentralSW | F96: South West | G96: Dorset | H96: 835 | I96: 0 | J96: 10 | K96: 0 | L96: 0 | M96: 10 | N96: 0 | O96: 0 | P96: 0 | Q96: 0 | R96: 10
A97: ALL SAINTS COFE (AIDED) PRIMARY SCHOOL | B97: 8723372 | C97: 0 | D97: MAINTAINED SCHOOL - MAINSTREAM | E97: South | F97: South East | G97: Wokingham | H97: 872 | I97: 0 | J97: 14 | K97: 0 | L97: 0 | M97: 14 | N97: 0 | O97: 0 | P97: 0 | Q97: 0 | R97: 14
A98: ALL SAINTS' COFE SCHOOL | B98: 9093102 | C98: 0 | D98: MAINTAINED SCHOOL - MAINSTREAM | E98: North | F98: North West | G98: Cumbria | H98: 909 | I98: 0 | J98: 20 | K98: 0 | L98: 0 | M98: 20 | N98: 0 | O98: 0 | P98: 0 | Q98: 0 | R98: 20
A99: ALLEN EDWARDS PRIMARY SCHOOL | B99: 2082808 | C99: 500292 | D99: MAINTAINED SCHOOL - MAINSTREAM | E99: South | F99: London | G99: Lambeth | H99: 208 | I99: 3 | J99: 0 | K99: 0 | L99: 0 | M99: 3 | N99: 0 | O99: 0 | P99: 0 | Q99: 0 | R99: 3
A100: ALLENBOURN MIDDLE SCHOOL | B100: 8354029 | C100: 0 | D100: MAINTAINED SCHOOL - MAINSTREAM | E100: CentralSW | F100: South West | G100: Dorset | H100: 835 | I100: 0 | J100: 10 | K100: 0 | L100: 0 | M100: 10 | N100: 0 | O100: 0 | P100: 0 | Q100: 0 | R100: 10
A101: ALLENBY PRIMARY SCHOOL | B101: 3072161 | C101: 0 | D101: MAINTAINED SCHOOL - MAINSTREAM | E101: South | F101: London | G101: Ealing | H101: 307 | I101: 12 | J101: 0 | K101: 0 | L101: 0 | M101: 12 | N101: 0 | O101: 0 | P101: 0 | Q101: 0 | R101: 12
A102: ALLERTON GRANGE SCHOOL | B102: 3834040 | C102: 114518 | D102: MAINTAINED SCHOOL - MAINSTREAM | E102: North | F102: Yorkshire and the Humber | G102: Leeds | H102: 383 | I102: 0 | J102: 12 | K102: 0 | L102: 0 | M102: 12 | N102: 2 | O102: 0 | P102: 0 | Q102: 2 | R102: 14
A103: ALLERTON HIGH SCHOOL | B103: 3834032 | C103: 114519 | D103: MAINTAINED SCHOOL - MAINSTREAM | E103: North | F103: Yorkshire and the Humber | G103: Leeds | H103: 383 | I103: 0 | J103: 11 | K103: 0 | L103: 0 | M103: 11 | N103: 2 | O103: 0 | P103: 0 | Q103: 2 | R103: 13
A104: ALLEYNE'S ACADEMY | B104: 8604112 | C104: 123084 | D104: ACADEMY - MAINSTREAM | E104: CentralSW | F104: West Midlands | G104: Staffordshire | H104: 860 | I104: 0 | J104: 0 | K104: 0 | L104: 0 | M104: 0 | N104: 1 | O104: 0 | P104: 0 | Q104: 1 | R104: 1
A105: ALMA PARK PRIMARY SCHOOL | B105: 3522006 | C105: 0 | D105: MAINTAINED SCHOOL - MAINSTREAM | E105: North | F105: North West | G105: Manchester | H105: 352 | I105: 0 | J105: 10 | K105: 0 | L105: 0 | M105: 10 | N105: 0 | O105: 0 | P105: 0 | Q105: 0 | R105: 10
A106: ALPERTON COMMUNITY SCHOOL | B106: 3045405 | C106: 122325 | D106: ACADEMY - MAINSTREAM | E106: South | F106: London | G106: Barnet | H106: 302 | I106: 0 | J106: 0 | K106: 0 | L106: 0 | M106: 0 | N106: 1 | O106: 0 | P106: 0 | Q106: 1 | R106: 1
A107: ALPERTON COMMUNITY SCHOOL | B107: 3045405 | C107: 122325 | D107: ACADEMY - MAINSTREAM | E107: South | F107: London | G107: Brent | H107: 304 | I107: 0 | J107: 16 | K107: 0 | L107: 0 | M107: 16 | N107: 5 | O107: 0 | P107: 0 | Q107: 5 | R107: 21
A108: ALSAGER SCHOOL | B108: 8954121 | C108: 124251 | D108: ACADEMY - MAINSTREAM | E108: North | F108: North West | G108: Cheshire East | H108: 895 | I108: 0 | J108: 0 | K108: 0 | L108: 0 | M108: 0 | N108: 1 | O108: 0 | P108: 0 | Q108: 1 | R108: 1
A109: ALSOP HIGH SCHOOL TECHNOLOGY & APPLIED LEARNING SPECIALIST COLLEGE | B109: 3414421 | C109: 113460 | D109: MAINTAINED SCHOOL - MAINSTREAM | E109: North | F109: North West | G109: Liverpool | H109: 341 | I109: 0 | J109: 5 | K109: 0 | L109: 0 | M109: 5 | N109: 3 | O109: 0 | P109: 0 | Q109: 3 | R109: 8
A110: ALT BRIDGE SECONDARY SUPPORT CENTRE | B110: 3407013 | C110: 123498 | D110: MAINTAINED SPECIAL SCHOOL | E110: North | F110: North West | G110: Knowsley | H110: 340 | I110: 0 | J110: 0 | K110: 0 | L110: 101 | M110: 101 | N110: 0 | O110: 0 | P110: 0 | Q110: 0 | R110: 101
A111: ALTERNATIVE CURRICULUM 14-19 | B111: 8691111 | C111: 0 | D111: MAINTAINED ALTERNATIVE PROVISION (AP) - PRU | E111: South | F111: South East | G111: West Berkshire | H111: 869 | I111: 0 | J111: 0 | K111: 48 | L111: 0 | M111: 48 | N111: 0 | O111: 0 | P111: 0 | Q111: 0 | R111: 48
A112: ALTERNATIVE EDUCATION SERVICE - THE BEACON CENTRE | B112: 3931100 | C112: 0 | D112: MAINTAINED ALTERNATIVE PROVISION (AP) - PRU | E112: North | F112: North East | G112: South Tyneside | H112: 393 | I112: 0 | J112: 0 | K112: 35 | L112: 0 | M112: 35 | N112: 0 | O112: 0 | P112: 0 | Q112: 0 | R112: 35
A113: Alternative Provision | B113: 333X001 | C113: 0 | D113: HNT Funded - Pre-16 Alternate Provision | E113: CentralSW | F113: West Midlands | G113: Sandwell | H113: 333 | I113: 0 | J113: 0 | K113: 35 | L113: 0 | M113: 35 | N113: 0 | O113: 0 | P113: 0 | Q113: 0 | R113: 35
A114: Alternative Provision | B114: 320X001 | C114: 0 | D114: HNT Funded - Pre-16 Alternate Provision | E114: South | F114: London | G114: Waltham Forest | H114: 320 | I114: 0 | J114: 0 | K114: 160 | L114: 0 | M114: 160 | N114: 0 | O114: 0 | P114: 0 | Q114: 0 | R114: 160
A115: ALTERNATIVE PROVISION CENTRE | B115: 9331121 | C115: 0 | D115: MAINTAINED ALTERNATIVE PROVISION (AP) - PRU | E115: CentralSW | F115: South West | G115: Somerset | H115: 933 | I115: 0 | J115: 0 | K115: 40 | L115: 0 | M115: 40 | N115: 0 | O115: 0 | P115: 0 | Q115: 0 | R115: 40
A116: ALTON COLLEGE | B116: 8508605 | C116: 108469 | D116: FURTHER EDUCATION PROVIDER | E116: South | F116: South East | G116: Hampshire | H116: 850 | I116: 0 | J116: 0 | K116: 0 | L116: 0 | M116: 0 | N116: 0 | O116: 15 | P116: 4 | Q116: 19 | R116: 19
A117: ALTON COLLEGE | B117: 8508605 | C117: 108469 | D117: FURTHER EDUCATION PROVIDER | E117: South | F117: South East | G117: Surrey | H117: 936 | I117: 0 | J117: 0 | K117: 0 | L117: 0 | M117: 0 | N117: 0 | O117: 2 | P117: 0 | Q117: 2 | R117: 2
A118: ALTRINCHAM COLLEGE OF ARTS | B118: 3584024 | C118: 122124 | D118: ACADEMY - MAINSTREAM | E118: North | F118: North West | G118: Trafford | H118: 358 | I118: 0 | J118: 6 | K118: 0 | L118: 0 | M118: 6 | N118: 0 | O118: 0 | P118: 0 | Q118: 0 | R118: 6
A119: ALTWOOD COFE SECONDARY SCHOOL | B119: 8684506 | C119: 122326 | D119: ACADEMY - MAINSTREAM | E119: South | F119: South East | G119: Buckinghamshire | H119: 825 | I119: 0 | J119: 0 | K119: 0 | L119: 0 | M119: 0 | N119: 1 | O119: 0 | P119: 0 | Q119: 1 | R119: 1
A120: ALTWOOD COFE SECONDARY SCHOOL | B120: 8684506 | C120: 122326 | D120: ACADEMY - MAINSTREAM | E120: South | F120: South East | G120: Windsor and Maidenhead | H120: 868 | I120: 0 | J120: 2 | K120: 0 | L120: 0 | M120: 2 | N120: 3 | O120: 0 | P120: 0 | Q120: 3 | R120: 5
A121: ALVASTON JUNIOR SCHOOL | B121: 8312442 | C121: 0 | D121: MAINTAINED SCHOOL - MAINSTREAM | E121: CentralSW | F121: East Midlands | G121: Derby | H121: 831 | I121: 0 | J121: 12 | K121: 0 | L121: 0 | M121: 12 | N121: 0 | O121: 0 | P121: 0 | Q121: 0 | R121: 12
A122: AMBER VALLEY & EREWASH SUPPORT CENTRE | B122: 8301102 | C122: 0 | D122: MAINTAINED ALTERNATIVE PROVISION (AP) - PRU | E122: CentralSW | F122: East Midlands | G122: Derbyshire | H122: 830 | I122: 0 | J122: 0 | K122: 104 | L122: 0 | M122: 104 | N122: 0 | O122: 0 | P122: 0 | Q122: 0 | R122: 104
A123: AMBERGATE SPORTS COLLEGE | B123: 9257002 | C123: 0 | D123: MAINTAINED SPECIAL SCHOOL | E123: CentralSW | F123: East Midlands | G123: Lincolnshire | H123: 925 | I123: 0 | J123: 0 | K123: 0 | L123: 122 | M123: 122 | N123: 0 | O123: 0 | P123: 0 | Q123: 0 | R123: 122
A124: AMBITIOUS ABOUT AUTISM (TREEHOUSE SCHOOL) | B124: 3097008 | C124: 122219 | D124: NON MAINTAINED SPECIAL SCHOOL | E124: South | F124: East of England | G124: Hertfordshire | H124: 919 | I124: 0 | J124: 0 | K124: 0 | L124: 1 | M124: 1 | N124: 1 | O124: 0 | P124: 0 | Q124: 1 | R124: 2
A125: AMBITIOUS ABOUT AUTISM (TREEHOUSE SCHOOL) | B125: 3097008 | C125: 122219 | D125: NON MAINTAINED SPECIAL SCHOOL | E125: South | F125: London | G125: Barnet | H125: 302 | I125: 0 | J125: 0 | K125: 0 | L125: 4 | M125: 4 | N125: 4 | O125: 0 | P125: 0 | Q125: 4 | R125: 8
A126: AMBITIOUS ABOUT AUTISM (TREEHOUSE SCHOOL) | B126: 3097008 | C126: 122219 | D126: NON MAINTAINED SPECIAL SCHOOL | E126: South | F126: London | G126: Brent | H126: 304 | I126: 0 | J126: 0 | K126: 0 | L126: 4 | M126: 4 | N126: 2 | O126: 0 | P126: 0 | Q126: 2 | R126: 6
A127: AMBITIOUS ABOUT AUTISM (TREEHOUSE SCHOOL) | B127: 3097008 | C127: 122219 | D127: NON MAINTAINED SPECIAL SCHOOL | E127: South | F127: London | G127: Camden | H127: 202 | I127: 0 | J127: 0 | K127: 0 | L127: 12 | M127: 12 | N127: 7 | O127: 0 | P127: 0 | Q127: 7 | R127: 19
A128: AMBITIOUS ABOUT AUTISM (TREEHOUSE SCHOOL) | B128: 3097008 | C128: 122219 | D128: NON MAINTAINED SPECIAL SCHOOL | E128: South | F128: London | G128: Ealing | H128: 307 | I128: 0 | J128: 0 | K128: 0 | L128: 1 | M128: 1 | N128: 0 | O128: 0 | P128: 0 | Q128: 0 | R128: 1
A129: AMBITIOUS ABOUT AUTISM (TREEHOUSE SCHOOL) | B129: 3097008 | C129: 122219 | D129: NON MAINTAINED SPECIAL SCHOOL | E129: South | F129: London | G129: Enfield | H129: 308 | I129: 0 | J129: 0 | K129: 0 | L129: 2 | M129: 2 | N129: 0 | O129: 0 | P129: 0 | Q129: 0 | R129: 2
A130: AMBITIOUS ABOUT AUTISM (TREEHOUSE SCHOOL) | B130: 3097008 | C130: 122219 | D130: NON MAINTAINED SPECIAL SCHOOL | E130: South | F130: London | G130: Hackney | H130: 204 | I130: 0 | J130: 0 | K130: 0 | L130: 2 | M130: 2 | N130: 1 | O130: 0 | P130: 0 | Q130: 1 | R130: 3
A131: AMBITIOUS ABOUT AUTISM (TREEHOUSE SCHOOL) | B131: 3097008 | C131: 122219 | D131: NON MAINTAINED SPECIAL SCHOOL | E131: South | F131: London | G131: Haringey | H131: 309 | I131: 0 | J131: 0 | K131: 0 | L131: 5 | M131: 5 | N131: 4 | O131: 0 | P131: 0 | Q131: 4 | R131: 9
A132: AMBITIOUS ABOUT AUTISM (TREEHOUSE SCHOOL) | B132: 3097008 | C132: 122219 | D132: NON MAINTAINED SPECIAL SCHOOL | E132: South | F132: London | G132: Harrow | H132: 310 | I132: 0 | J132: 0 | K132: 0 | L132: 0 | M132: 0 | N132: 2 | O132: 0 | P132: 0 | Q132: 2 | R132: 2
A133: AMBITIOUS ABOUT AUTISM (TREEHOUSE SCHOOL) | B133: 3097008 | C133: 122219 | D133: NON MAINTAINED SPECIAL SCHOOL | E133: South | F133: London | G133: Havering | H133: 311 | I133: 0 | J133: 0 | K133: 0 | L133: 2 | M133: 2 | N133: 0 | O133: 0 | P133: 0 | Q133: 0 | R133: 2
A134: AMBITIOUS ABOUT AUTISM (TREEHOUSE SCHOOL) | B134: 3097008 | C134: 122219 | D134: NON MAINTAINED SPECIAL SCHOOL | E134: South | F134: London | G134: Hillingdon | H134: 312 | I134: 0 | J134: 0 | K134: 0 | L134: 2 | M134: 2 | N134: 0 | O134: 0 | P134: 0 | Q134: 0 | R134: 2
A135: AMBITIOUS ABOUT AUTISM (TREEHOUSE SCHOOL) | B135: 3097008 | C135: 122219 | D135: NON MAINTAINED SPECIAL SCHOOL | E135: South | F135: London | G135: Kensington and Chelsea | H135: 207 | I135: 0 | J135: 0 | K135: 0 | L135: 0 | M135: 0 | N135: 3 | O135: 0 | P135: 0 | Q135: 3 | R135: 3
A136: AMBITIOUS ABOUT AUTISM (TREEHOUSE SCHOOL) | B136: 3097008 | C136: 122219 | D136: NON MAINTAINED SPECIAL SCHOOL | E136: South | F136: London | G136: Lewisham | H136: 209 | I136: 0 | J136: 0 | K136: 0 | L136: 1 | M136: 1 | N136: 0 | O136: 0 | P136: 0 | Q136: 0 | R136: 1
A137: AMBITIOUS ABOUT AUTISM (TREEHOUSE SCHOOL) | B137: 3097008 | C137: 122219 | D137: NON MAINTAINED SPECIAL SCHOOL | E137: South | F137: London | G137: Richmond upon Thames | H137: 318 | I137: 0 | J137: 0 | K137: 0 | L137: 1 | M137: 1 | N137: 0 | O137: 0 | P137: 0 | Q137: 0 | R137: 1
A138: AMBITIOUS ABOUT AUTISM (TREEHOUSE SCHOOL) | B138: 3097008 | C138: 122219 | D138: NON MAINTAINED SPECIAL SCHOOL | E138: South | F138: London | G138: Southwark | H138: 210 | I138: 0 | J138: 0 | K138: 0 | L138: 2 | M138: 2 | N138: 1 | O138: 0 | P138: 0 | Q138: 1 | R138: 3
A139: AMBITIOUS ABOUT AUTISM (TREEHOUSE SCHOOL) | B139: 3097008 | C139: 122219 | D139: NON MAINTAINED SPECIAL SCHOOL | E139: South | F139: London | G139: Tower Hamlets | H139: 211 | I139: 0 | J139: 0 | K139: 0 | L139: 3 | M139: 3 | N139: 1 | O139: 0 | P139: 0 | Q139: 1 | R139: 4
A140: AMBITIOUS ABOUT AUTISM (TREEHOUSE SCHOOL) | B140: 3097008 | C140: 122219 | D140: NON MAINTAINED SPECIAL SCHOOL | E140: South | F140: London | G140: Westminster | H140: 213 | I140: 0 | J140: 0 | K140: 0 | L140: 3 | M140: 3 | N140: 2 | O140: 0 | P140: 0 | Q140: 2 | R140: 5
A141: AMERSHAM AND WYCOMBE COLLEGE | B141: 8258001 | C141: 105019 | D141: FURTHER EDUCATION PROVIDER | E141: South | F141: South East | G141: Buckinghamshire | H141: 825 | I141: 0 | J141: 0 | K141: 0 | L141: 0 | M141: 0 | N141: 0 | O141: 7 | P141: 35 | Q141: 42 | R141: 42
A142: AMERSHAM AND WYCOMBE COLLEGE | B142: 8258001 | C142: 105019 | D142: FURTHER EDUCATION PROVIDER | E142: South | F142: South East | G142: Oxfordshire | H142: 931 | I142: 0 | J142: 0 | K142: 0 | L142: 0 | M142: 0 | N142: 0 | O142: 0 | P142: 1 | Q142: 1 | R142: 1
A143: AMERSHAM SCHOOL | B143: 8254095 | C143: 120372 | D143: ACADEMY - MAINSTREAM | E143: South | F143: South East | G143: Buckinghamshire | H143: 825 | I143: 0 | J143: 0 | K143: 0 | L143: 0 | M143: 0 | N143: 4 | O143: 0 | P143: 0 | Q143: 4 | R143: 4
A144: AMWELL VIEW SCHOOL | B144: 9197028 | C144: 123684 | D144: MAINTAINED SPECIAL SCHOOL | E144: South | F144: East of England | G144: Hertfordshire | H144: 919 | I144: 0 | J144: 0 | K144: 0 | L144: 87 | M144: 87 | N144: 28 | O144: 0 | P144: 0 | Q144: 28 | R144: 115
A145: AMY JOHNSON PRIMARY SCHOOL | B145: 3192046 | C145: 0 | D145: MAINTAINED SCHOOL - MAINSTREAM | E145: South | F145: London | G145: Sutton | H145: 319 | I145: 10 | J145: 0 | K145: 0 | L145: 0 | M145: 10 | N145: 0 | O145: 0 | P145: 0 | Q145: 0 | R145: 10
A146: ANDOVER EDUCATION CENTRE | B146: 8501104 | C146: 0 | D146: MAINTAINED ALTERNATIVE PROVISION (AP) - PRU | E146: South | F146: South East | G146: Hampshire | H146: 850 | I146: 0 | J146: 0 | K146: 34 | L146: 0 | M146: 34 | N146: 0 | O146: 0 | P146: 0 | Q146: 0 | R146: 34
A147: ANGLESEY PRIMARY SCHOOL | B147: 3302479 | C147: 0 | D147: MAINTAINED SCHOOL - MAINSTREAM | E147: CentralSW | F147: West Midlands | G147: Birmingham | H147: 330 | I147: 0 | J147: 10 | K147: 0 | L147: 0 | M147: 10 | N147: 0 | O147: 0 | P147: 0 | Q147: 0 | R147: 10
A148: ANSTON HILLCREST PRIMARY SCHOOL | B148: 3722130 | C148: 0 | D148: MAINTAINED SCHOOL - MAINSTREAM | E148: North | F148: Yorkshire and the Humber | G148: Rotherham | H148: 372 | I148: 20 | J148: 0 | K148: 0 | L148: 0 | M148: 20 | N148: 0 | O148: 0 | P148: 0 | Q148: 0 | R148: 20
A149: APPLEBY GRAMMAR SCHOOL | B149: 9095407 | C149: 120251 | D149: ACADEMY - MAINSTREAM | E149: North | F149: North West | G149: Cumbria | H149: 909 | I149: 0 | J149: 0 | K149: 0 | L149: 0 | M149: 0 | N149: 2 | O149: 0 | P149: 0 | Q149: 2 | R149: 2
A150: APPLEFIELDS SCHOOL | B150: 8167032 | C150: 123732 | D150: MAINTAINED SPECIAL SCHOOL | E150: North | F150: Yorkshire and the Humber | G150: East Riding of Yorkshire | H150: 811 | I150: 0 | J150: 0 | K150: 0 | L150: 0 | M150: 0 | N150: 2 | O150: 0 | P150: 0 | Q150: 2 | R150: 2
A151: APPLEFIELDS SCHOOL | B151: 8167032 | C151: 123732 | D151: MAINTAINED SPECIAL SCHOOL | E151: North | F151: Yorkshire and the Humber | G151: North Yorkshire | H151: 815 | I151: 0 | J151: 0 | K151: 0 | L151: 0 | M151: 0 | N151: 14 | O151: 0 | P151: 0 | Q151: 14 | R151: 14
A152: APPLEFIELDS SCHOOL | B152: 8167032 | C152: 123732 | D152: MAINTAINED SPECIAL SCHOOL | E152: North | F152: Yorkshire and the Humber | G152: York | H152: 816 | I152: 0 | J152: 0 | K152: 0 | L152: 90 | M152: 90 | N152: 50 | O152: 0 | P152: 0 | Q152: 50 | R152: 140
A153: APPLEGARTH ACADEMY | B153: 3062016 | C153: 123941 | D153: ACADEMY - MAINSTREAM | E153: South | F153: London | G153: Croydon | H153: 306 | I153: 18 | J153: 0 | K153: 0 | L153: 0 | M153: 18 | N153: 0 | O153: 0 | P153: 0 | Q153: 0 | R153: 18
A154: APPLEMORE COLLEGE | B154: 8505412 | C154: 0 | D154: MAINTAINED SCHOOL - MAINSTREAM | E154: South | F154: South East | G154: Hampshire | H154: 850 | I154: 20 | J154: 0 | K154: 0 | L154: 0 | M154: 20 | N154: 0 | O154: 0 | P154: 0 | Q154: 0 | R154: 20
A155: AQUINAS COLLEGE | B155: 3568603 | C155: 108372 | D155: FURTHER EDUCATION PROVIDER | E155: CentralSW | F155: East Midlands | G155: Derbyshire | H155: 830 | I155: 0 | J155: 0 | K155: 0 | L155: 0 | M155: 0 | N155: 0 | O155: 1 | P155: 0 | Q155: 1 | R155: 1
A156: AQUINAS COLLEGE | B156: 3568603 | C156: 108372 | D156: FURTHER EDUCATION PROVIDER | E156: North | F156: North West | G156: Cheshire East | H156: 895 | I156: 0 | J156: 0 | K156: 0 | L156: 0 | M156: 0 | N156: 0 | O156: 1 | P156: 0 | Q156: 1 | R156: 1
A157: AQUINAS COLLEGE | B157: 3568603 | C157: 108372 | D157: FURTHER EDUCATION PROVIDER | E157: North | F157: North West | G157: Manchester | H157: 352 | I157: 0 | J157: 0 | K157: 0 | L157: 0 | M157: 0 | N157: 0 | O157: 1 | P157: 0 | Q157: 1 | R157: 1
A158: AQUINAS COLLEGE | B158: 3568603 | C158: 108372 | D158: FURTHER EDUCATION PROVIDER | E158: North | F158: North West | G158: Stockport | H158: 356 | I158: 0 | J158: 0 | K158: 0 | L158: 0 | M158: 0 | N158: 0 | O158: 37 | P158: 0 | Q158: 37 | R158: 37
A159: ARBORETUM PRIMARY SCHOOL | B159: 8312629 | C159: 0 | D159: MAINTAINED SCHOOL - MAINSTREAM | E159: CentralSW | F159: East Midlands | G159: Derby | H159: 831 | I159: 0 | J159: 5 | K159: 0 | L159: 0 | M159: 5 | N159: 0 | O159: 0 | P159: 0 | Q159: 0 | R159: 5
A160: ARBOUR VALE SCHOOL | B160: 8717035 | C160: 123985 | D160: MAINTAINED SPECIAL SCHOOL | E160: South | F160: South East | G160: Bracknell Forest | H160: 867 | I160: 0 | J160: 0 | K160: 0 | L160: 0 | M160: 0 | N160: 1 | O160: 0 | P160: 0 | Q160: 1 | R160: 1
A161: ARBOUR VALE SCHOOL | B161: 8717035 | C161: 123985 | D161: MAINTAINED SPECIAL SCHOOL | E161: South | F161: South East | G161: Buckinghamshire | H161: 825 | I161: 0 | J161: 0 | K161: 0 | L161: 0 | M161: 0 | N161: 2 | O161: 0 | P161: 0 | Q161: 2 | R161: 2
A162: ARBOUR VALE SCHOOL | B162: 8717035 | C162: 123985 | D162: MAINTAINED SPECIAL SCHOOL | E162: South | F162: South East | G162: Slough | H162: 871 | I162: 0 | J162: 0 | K162: 0 | L162: 255 | M162: 255 | N162: 30 | O162: 0 | P162: 0 | Q162: 30 | R162: 285
A163: ARBOUR VALE SCHOOL | B163: 8717035 | C163: 123985 | D163: MAINTAINED SPECIAL SCHOOL | E163: South | F163: South East | G163: Windsor and Maidenhead | H163: 868 | I163: 0 | J163: 0 | K163: 0 | L163: 1 | M163: 1 | N163: 1 | O163: 0 | P163: 0 | Q163: 1 | R163: 2
A164: ARBOURTHORNE COMMUNITY PRIMARY SCHOOL | B164: 3733429 | C164: 0 | D164: MAINTAINED SCHOOL - MAINSTREAM | E164: North | F164: Yorkshire and the Humber | G164: Sheffield | H164: 373 | I164: 0 | J164: 12 | K164: 0 | L164: 0 | M164: 12 | N164: 0 | O164: 0 | P164: 0 | Q164: 0 | R164: 12
A165: ARCHBISHOP HOLGATE'S SCHOOL, A CHURCH OF ENGLAND ACADEMY | B165: 8164500 | C165: 119523 | D165: ACADEMY - MAINSTREAM | E165: North | F165: Yorkshire and the Humber | G165: York | H165: 816 | I165: 0 | J165: 0 | K165: 0 | L165: 0 | M165: 0 | N165: 3 | O165: 0 | P165: 0 | Q165: 3 | R165: 3
A166: ARCHBISHOP SENTAMU ACADEMY | B166: 8106905 | C166: 119095 | D166: ACADEMY - MAINSTREAM | E166: North | F166: Yorkshire and the Humber | G166: Kingston upon Hull, City of | H166: 810 | I166: 0 | J166: 0 | K166: 0 | L166: 0 | M166: 0 | N166: 6 | O166: 0 | P166: 0 | Q166: 6 | R166: 6
A167: ARCHBISHOP SUMNER CHURCH OF ENGLAND PRIMARY SCHOOL | B167: 2083307 | C167: 500305 | D167: MAINTAINED SCHOOL - MAINSTREAM | E167: South | F167: London | G167: Lambeth | H167: 208 | I167: 3 | J167: 0 | K167: 0 | L167: 0 | M167: 3 | N167: 0 | O167: 0 | P167: 0 | Q167: 0 | R167: 3
A168: ARCHBISHOP TENISON'S COFE HIGH SCHOOL | B168: 3064600 | C168: 113030 | D168: MAINTAINED SCHOOL - MAINSTREAM | E168: South | F168: London | G168: Croydon | H168: 306 | I168: 0 | J168: 0 | K168: 0 | L168: 0 | M168: 0 | N168: 1 | O168: 0 | P168: 0 | Q168: 1 | R168: 1
A169: ARCHERS BROOK SEBD RESIDENTIAL SCHOOL | B169: 8967208 | C169: 0 | D169: MAINTAINED SPECIAL SCHOOL | E169: North | F169: North West | G169: Cheshire West and Chester | H169: 896 | I169: 0 | J169: 0 | K169: 0 | L169: 55 | M169: 55 | N169: 0 | O169: 0 | P169: 0 | Q169: 0 | R169: 55
A170: ARDEN COLLEGE (SPECIALITY CARE REST HOMES LIMITED) | B170: 3438220 | C170: 114840 | D170: SPECIALIST POST-16 INSTITUTION | E170: CentralSW | F170: West Midlands | G170: Staffordshire | H170: 860 | I170: 0 | J170: 0 | K170: 0 | L170: 0 | M170: 0 | N170: 0 | O170: 0 | P170: 1 | Q170: 1 | R170: 1
A171: ARDEN COLLEGE (SPECIALITY CARE REST HOMES LIMITED) | B171: 3438220 | C171: 114840 | D171: SPECIALIST POST-16 INSTITUTION | E171: North | F171: North West | G171: Blackburn with Darwen | H171: 889 | I171: 0 | J171: 0 | K171: 0 | L171: 0 | M171: 0 | N171: 0 | O171: 0 | P171: 1 | Q171: 1 | R171: 1
A172: ARDEN COLLEGE (SPECIALITY CARE REST HOMES LIMITED) | B172: 3438220 | C172: 114840 | D172: SPECIALIST POST-16 INSTITUTION | E172: North | F172: North West | G172: Bolton | H172: 350 | I172: 0 | J172: 0 | K172: 0 | L172: 0 | M172: 0 | N172: 0 | O172: 0 | P172: 2 | Q172: 2 | R172: 2
A173: ARDEN COLLEGE (SPECIALITY CARE REST HOMES LIMITED) | B173: 3438220 | C173: 114840 | D173: SPECIALIST POST-16 INSTITUTION | E173: North | F173: North West | G173: Lancashire | H173: 888 | I173: 0 | J173: 0 | K173: 0 | L173: 0 | M173: 0 | N173: 0 | O173: 0 | P173: 15 | Q173: 15 | R173: 15
A174: ARDEN COLLEGE (SPECIALITY CARE REST HOMES LIMITED) | B174: 3438220 | C174: 114840 | D174: SPECIALIST POST-16 INSTITUTION | E174: North | F174: North West | G174: Liverpool | H174: 341 | I174: 0 | J174: 0 | K174: 0 | L174: 0 | M174: 0 | N174: 0 | O174: 0 | P174: 1 | Q174: 1 | R174: 1
A175: ARDEN COLLEGE (SPECIALITY CARE REST HOMES LIMITED) | B175: 3438220 | C175: 114840 | D175: SPECIALIST POST-16 INSTITUTION | E175: North | F175: North West | G175: Sefton | H175: 343 | I175: 0 | J175: 0 | K175: 0 | L175: 0 | M175: 0 | N175: 0 | O175: 0 | P175: 5 | Q175: 5 | R175: 5
A176: ARDEN COLLEGE (SPECIALITY CARE REST HOMES LIMITED) | B176: 3438220 | C176: 114840 | D176: SPECIALIST POST-16 INSTITUTION | E176: North | F176: North West | G176: St. Helens | H176: 342 | I176: 0 | J176: 0 | K176: 0 | L176: 0 | M176: 0 | N176: 0 | O176: 0 | P176: 1 | Q176: 1 | R176: 1
A177: ARDEN COLLEGE (SPECIALITY CARE REST HOMES LIMITED) | B177: 3438220 | C177: 114840 | D177: SPECIALIST POST-16 INSTITUTION | E177: North | F177: North West | G177: Trafford | H177: 358 | I177: 0 | J177: 0 | K177: 0 | L177: 0 | M177: 0 | N177: 0 | O177: 0 | P177: 1 | Q177: 1 | R177: 1
A178: AREA 51 EDUCATION LIMITED | B178: 3097904 | C178: 123034 | D178: SPECIALIST POST-16 INSTITUTION | E178: South | F178: London | G178: Barnet | H178: 302 | I178: 0 | J178: 0 | K178: 0 | L178: 0 | M178: 0 | N178: 0 | O178: 0 | P178: 1 | Q178: 1 | R178: 1
A179: AREA 51 EDUCATION LIMITED | B179: 3097904 | C179: 123034 | D179: SPECIALIST POST-16 INSTITUTION | E179: South | F179: London | G179: Hackney | H179: 204 | I179: 0 | J179: 0 | K179: 0 | L179: 0 | M179: 0 | N179: 0 | O179: 0 | P179: 4 | Q179: 4 | R179: 4
A180: AREA 51 EDUCATION LIMITED | B180: 3097904 | C180: 123034 | D180: SPECIALIST POST-16 INSTITUTION | E180: South | F180: London | G180: Haringey | H180: 309 | I180: 0 | J180: 0 | K180: 0 | L180: 0 | M180: 0 | N180: 0 | O180: 0 | P180: 10 | Q180: 10 | R180: 10
A181: AREA 51 EDUCATION LIMITED | B181: 3097904 | C181: 123034 | D181: SPECIALIST POST-16 INSTITUTION | E181: South | F181: London | G181: Islington | H181: 206 | I181: 0 | J181: 0 | K181: 0 | L181: 0 | M181: 0 | N181: 0 | O181: 0 | P181: 3 | Q181: 3 | R181: 3
A182: ARK BRUNEL PRIMARY ACADEMY | B182: 2072000 | C182: 124488 | D182: ACADEMY - MAINSTREAM | E182: South | F182: London | G182: Kensington and Chelsea | H182: 207 | I182: 16 | J182: 0 | K182: 0 | L182: 0 | M182: 16 | N182: 0 | O182: 0 | P182: 0 | Q182: 0 | R182: 16
A183: ARK PUTNEY ACADEMY | B183: 2125402 | C183: 122388 | D183: ACADEMY - MAINSTREAM | E183: South | F183: London | G183: Wandsworth | H183: 212 | I183: 0 | J183: 0 | K183: 0 | L183: 0 | M183: 0 | N183: 4 | O183: 0 | P183: 0 | Q183: 4 | R183: 4
A184: ARMTHORPE ACADEMY | B184: 3714021 | C184: 121002 | D184: ACADEMY - MAINSTREAM | E184: North | F184: Yorkshire and the Humber | G184: Doncaster | H184: 371 | I184: 0 | J184: 0 | K184: 0 | L184: 0 | M184: 0 | N184: 1 | O184: 0 | P184: 0 | Q184: 1 | R184: 1
A185: ARNOLD ACADEMY | B185: 8234040 | C185: 119841 | D185: ACADEMY - MAINSTREAM | E185: South | F185: East of England | G185: Central Bedfordshire | H185: 823 | I185: 6 | J185: 0 | K185: 0 | L185: 0 | M185: 6 | N185: 0 | O185: 0 | P185: 0 | Q185: 0 | R185: 6
A186: ARNOT ST MARY COFE PRIMARY SCHOOL | B186: 3413965 | C186: 0 | D186: MAINTAINED SCHOOL - MAINSTREAM | E186: North | F186: North West | G186: Liverpool | H186: 341 | I186: 0 | J186: 8 | K186: 0 | L186: 0 | M186: 8 | N186: 0 | O186: 0 | P186: 0 | Q186: 0 | R186: 8
A187: ARTHUR MELLOWS VILLAGE COLLEGE | B187: 8745417 | C187: 119274 | D187: ACADEMY - MAINSTREAM | E187: South | F187: East of England | G187: Peterborough | H187: 874 | I187: 0 | J187: 0 | K187: 0 | L187: 0 | M187: 0 | N187: 1 | O187: 0 | P187: 0 | Q187: 1 | R187: 1
A188: ASH FIELD ACADEMY | B188: 8567003 | C188: 121036 | D188: ACADEMY - SPECIAL | E188: CentralSW | F188: East Midlands | G188: Leicester | H188: 856 | I188: 0 | J188: 0 | K188: 0 | L188: 99 | M188: 99 | N188: 19 | O188: 0 | P188: 0 | Q188: 19 | R188: 118
A189: ASH FIELD ACADEMY | B189: 8567003 | C189: 121036 | D189: ACADEMY - SPECIAL | E189: CentralSW | F189: East Midlands | G189: Leicestershire | H189: 855 | I189: 0 | J189: 0 | K189: 0 | L189: 0 | M189: 0 | N189: 5 | O189: 0 | P189: 0 | Q189: 5 | R189: 5
A190: ASH LEA SCHOOL | B190: 8917023 | C190: 123757 | D190: MAINTAINED SPECIAL SCHOOL | E190: CentralSW | F190: East Midlands | G190: Nottingham | H190: 892 | I190: 0 | J190: 0 | K190: 0 | L190: 0 | M190: 0 | N190: 1 | O190: 0 | P190: 0 | Q190: 1 | R190: 1
A191: ASH LEA SCHOOL | B191: 8917023 | C191: 123757 | D191: MAINTAINED SPECIAL SCHOOL | E191: CentralSW | F191: East Midlands | G191: Nottinghamshire | H191: 891 | I191: 0 | J191: 0 | K191: 0 | L191: 67 | M191: 67 | N191: 20 | O191: 0 | P191: 0 | Q191: 20 | R191: 87
A192: ASH LEA SCHOOL | B192: 8917023 | C192: 123757 | D192: MAINTAINED SPECIAL SCHOOL | E192: CentralSW | F192: East Midlands | G192: Rutland | H192: 857 | I192: 0 | J192: 0 | K192: 0 | L192: 0 | M192: 0 | N192: 1 | O192: 0 | P192: 0 | Q192: 1 | R192: 1
A193: ASH TREES SCHOOL | B193: 8087028 | C193: 0 | D193: MAINTAINED SPECIAL SCHOOL | E193: North | F193: North East | G193: Stockton-on-Tees | H193: 808 | I193: 0 | J193: 0 | K193: 0 | L193: 123.5 | M193: 123.5 | N193: 0 | O193: 0 | P193: 0 | Q193: 0 | R193: 123.5
A194: ASHBROW SCHOOL | B194: 3822043 | C194: 0 | D194: MAINTAINED SCHOOL - MAINSTREAM | E194: North | F194: Yorkshire and the Humber | G194: Kirklees | H194: 382 | I194: 0 | J194: 12 | K194: 0 | L194: 0 | M194: 12 | N194: 0 | O194: 0 | P194: 0 | Q194: 0 | R194: 12
A195: ASHBY SCHOOL | B195: 8554508 | C195: 122080 | D195: ACADEMY - MAINSTREAM | E195: CentralSW | F195: East Midlands | G195: Leicestershire | H195: 855 | I195: 0 | J195: 0 | K195: 0 | L195: 0 | M195: 0 | N195: 1 | O195: 0 | P195: 0 | Q195: 1 | R195: 1
A196: ASHCROFT TECHNOLOGY ACADEMY | B196: 2126905 | C196: 118598 | D196: ACADEMY - MAINSTREAM | E196: South | F196: London | G196: Merton | H196: 315 | I196: 0 | J196: 0 | K196: 0 | L196: 0 | M196: 0 | N196: 1 | O196: 0 | P196: 0 | Q196: 1 | R196: 1
A197: ASHCROFT TECHNOLOGY ACADEMY | B197: 2126905 | C197: 118598 | D197: ACADEMY - MAINSTREAM | E197: South | F197: London | G197: Wandsworth | H197: 212 | I197: 19 | J197: 0 | K197: 0 | L197: 0 | M197: 19 | N197: 2 | O197: 0 | P197: 0 | Q197: 2 | R197: 21
A198: ASHDALE | B198: 8061102 | C198: 0 | D198: MAINTAINED ALTERNATIVE PROVISION (AP) - PRU | E198: North | F198: North East | G198: Middlesbrough | H198: 806 | I198: 0 | J198: 0 | K198: 40 | L198: 0 | M198: 40 | N198: 0 | O198: 0 | P198: 0 | Q198: 0 | R198: 40
A199: ASHFIELD COMPREHENSIVE SCHOOL | B199: 8914009 | C199: 121097 | D199: ACADEMY - MAINSTREAM | E199: CentralSW | F199: East Midlands | G199: Derbyshire | H199: 830 | I199: 0 | J199: 0 | K199: 0 | L199: 0 | M199: 0 | N199: 1 | O199: 0 | P199: 0 | Q199: 1 | R199: 1
A200: ASHFIELD JUNIOR SCHOOL | B200: 9092148 | C200: 0 | D200: MAINTAINED SCHOOL - MAINSTREAM | E200: North | F200: North West | G200: Cumbria | H200: 909 | I200: 0 | J200: 3 | K200: 0 | L200: 0 | M200: 3 | N200: 0 | O200: 0 | P200: 0 | Q200: 0 | R200: 3
... 4300 more rows
